fUST/lending_fUST_20250805
["ID","MTS","AMOUNT","RATE_DAILY","PERIOD"]
[377345148,1754370639503,-613.684037,0.00036512,14]
[377345150,1754370639525,-613.684037,0.00036512,14]
[377345151,1754370639537,-3868.68126538,0.00036536,120]
[377345152,1754370639551,-3413.99873462,0.00036536,120]
[377345153,1754370639561,-151.0,0.00036643,15]
[377345154,1754370639572,-1500.0,0.00036712,7]
[377345155,1754370639583,-2029.06426412,0.00037358,120]
[377345156,1754370639595,-553.04715662,0.00037358,120]
[377345157,1754370639608,-1142.13736508,0.00037358,120]
[377345158,1754370639621,-1567.3008456,0.00037358,120]
[377345159,1754370639633,-617.98410226,0.00037358,120]
[377345160,1754370639645,-1373.14626632,0.00037358,120]
[377345161,1754370639656,-151.0,0.00037482,15]
[377345162,1754370639666,-65.42223222,0.00037534,7]
[377345163,1754370639679,-1434.57776778,0.00037534,7]
[377345164,1754370639690,-151.0,0.00037547,14]
[377345165,1754370639700,-151.0,0.00037547,14]
[377345166,1754370639710,-179.654178,0.00037547,14]
[377345167,1754370639720,-613.684037,0.00037547,14]
[377345168,1754370639730,-613.684037,0.00037547,14]
[377345169,1754370639739,-150.0,0.00037792,2]
[377345170,1754370639750,-604.82767497,0.000379,2]
[377345171,1754370639759,-2361.02569631,0.00038,14]
[377345203,1754370643584,-1686.79800637,0.00030395,2]
[377345216,1754370646459,-307.79660852,0.00030395,2]
[377345217,1754370652520,167.42798269,0.0003,120]
[377345218,1754370690759,233.0,0.000265,2]
[377345221,1754370903213,8596.54074621,0.00025,2]
[377345224,1754371285657,162.403721,0.00013699,2]
[377345225,1754371286061,162.403721,0.00023973,2]
[377345230,1754371535502,210.9302073,0.00030339,30]
[377345270,1754371721754,7228.35624051,0.0002,10]
[377345271,1754371726681,83819.41922275,0.0002249,7]
[377345273,1754371757982,155.42785762,0.0002039,2]
[377345274,1754371758163,155.42785762,0.0002539,2]
[377345292,1754371832778,-527.3554621,0.00029,10]
[377345294,1754371832789,-295.6475331,0.00029375,2]
[377345295,1754371832800,-228.75251582,0.00029475,2]
[377345296,1754371832810,-5205.12969006,0.0003013,5]
[377345297,1754371832820,-400.0,0.00030238,2]
[377345298,1754371832830,-456.26900128,0.00030239,2]
[377345299,1754371832840,-690.2749773,0.00030239,2]
[377345300,1754371832850,-333.52,0.00030329,3]
[377345301,1754371832859,-166.76,0.00030329,3]
[377345302,1754371832869,-500.32,0.00030329,3]
[377345303,1754371832878,-202.35,0.00030329,10]
[377345304,1754371832887,-209.1,0.00030329,10]
[377345305,1754371832897,-174.25,0.00030329,10]
[377345306,1754371832906,-2090.49253384,0.00030329,2]
[377345307,1754371832915,-794.80140585,0.00030339,2]
[377345308,1754371832927,-727.76760405,0.00030339,2]
[377345313,1754371838571,-275.75609674,0.00030328,2]
[377345314,1754371838580,-500.0,0.00030328,2]
[377345316,1754371838590,-500.0,0.00030328,2]
[377345317,1754371838599,-500.0,0.00030328,2]
[377345318,1754371838608,-465.91895775,0.00030328,2]
[377345319,1754371838618,-871.26,0.00030329,10]
[377345320,1754371838628,-394.18608842,0.00030339,2]
[377345321,1754371838637,-90861.31445496,0.00030339,20]
[377345322,1754371838652,-453.67243545,0.00030339,20]
[377345323,1754371838664,-798.52629353,0.00030339,20]
[377345324,1754371838677,-66475.96475758,0.00030339,20]
[377345325,1754371838687,-90924.31060628,0.00030339,2]
[377345326,1754371838696,-300.0,0.00030339,2]
[377345327,1754371838706,-3867.7669857,0.00030339,2]
[377345328,1754371838715,-807.02033499,0.00030339,2]
[377345329,1754371838725,-253.94548707,0.00030339,2]
[377345330,1754371838734,-295.8940689,0.00030339,2]
[377345331,1754371838743,-325.92515156,0.00030339,2]
[377345332,1754371838753,-290.880421,0.00030339,2]
[377345333,1754371838764,-51554.74233439,0.00030339,2]
[377345334,1754371838774,-635.1252571,0.00030339,2]
[377345335,1754371838784,-1356.95346163,0.00030339,2]
[377345336,1754371838794,-156.09981356,0.00030339,2]
[377345337,1754371838803,-10299.48129283,0.00030339,2]
[377345338,1754371838813,-6271.73794321,0.00030339,2]
[377345339,1754371838822,-157.11620512,0.00030339,2]
[377345340,1754371838832,-1710.96222817,0.00030339,2]
[377345341,1754371838842,-1863.23852741,0.00030339,2]
[377345342,1754371838852,-2.14727576,0.00030339,2]
[377345343,1754371840674,-503.76566143,0.00030339,2]
[377345344,1754371840684,-178.70572239,0.00030339,2]
[377345345,1754371840693,-466.50771011,0.00030339,2]
[377345346,1754371840702,-6153.53775073,0.00030339,2]
[377345347,1754371840712,-842.25606042,0.00030385,2]
[377345348,1754371840723,-160.0,0.00030385,2]
[377345349,1754371840733,-12655.02535889,0.00030385,2]
[377345350,1754371840742,-216.4206905,0.00030385,2]
[377345351,1754371840752,-215.21874788,0.00030385,2]
[377345352,1754371840761,-160.0,0.00030385,2]
[377345353,1754371840771,-17512.25260134,0.000309,15]
[377345354,1754371840780,-100000.0,0.0003099,2]
[377345355,1754371840790,-599.0,0.00031,2]
[377345356,1754371840800,-180.15606169,0.00031196,6]
[377345357,1754371840810,-667.04,0.00031699,3]
[377345358,1754371840820,-333.52,0.00031699,3]
[377345359,1754371840831,-181.22,0.00031781,2]
[377345360,1754371840840,-490.0,0.0003187,120]
[377345361,1754371840850,-490.0,0.0003188,120]
[377345362,1754371840860,-490.0,0.0003189,120]
[377345363,1754371840870,-456.26900126,0.00032243,2]
[377345365,1754371841006,-876.90378076,0.00033,2]
[377345367,1754371841017,-1342.64,0.00033,7]
[377345369,1754371841027,-5345.87,0.00033,14]
[377345370,1754371841037,-16373.12437298,0.00033,14]
[377345373,1754371841050,-831.63369453,0.00033,14]
[377345374,1754371841063,-1354.59964158,0.00033,14]
[377345419,1754371843506,-5727.44862835,0.00033,14]
[377345420,1754371843518,-0.01366256,0.00033,14]
[377345421,1754371843528,-447.49,0.00033,7]
[377345422,1754371843537,-167.0,0.00033,14]
[377345423,1754371843546,-13733.09828791,0.00033061,2]
[377345456,1754372103131,17338.0,0.00025,2]
[377345457,1754372140602,282.76,0.00029065,30]
[377345458,1754372208726,251.34,0.00029065,30]
[377345459,1754372209127,251.34,0.00029908,30]
[377345463,1754372279160,195.49,0.00029908,30]
[377345464,1754372350137,173.77,0.00029908,30]
[377345466,1754372375554,163.034031,0.00013699,2]
[377345467,1754372375755,163.034031,0.00023182,2]
[377345468,1754372423144,154.46,0.00029008,30]
[377345472,1754372505174,2235.30312029,0.000265,2]
[377345474,1754372964886,189.91268223,0.000244,2]
[377345502,1754373032851,-154.994934,0.00028571,20]
[377345505,1754373032861,-300.0,0.00029184,2]
[377345508,1754373032870,-181.0,0.00029184,2]
[377345510,1754373032880,-170.0,0.00029184,2]
[377345512,1754373032888,-500.0,0.00029185,2]
[377345514,1754373032898,-500.0,0.00029185,2]
[377345516,1754373032907,-550.81575405,0.00029185,2]
[377345518,1754373032916,-218.43543975,0.00029185,2]
[377345520,1754373032925,-500.0,0.00029185,2]
[377345522,1754373032934,-426.64108754,0.00029185,2]
[377345524,1754373032943,-24900.0,0.00029186,2]
[377345526,1754373032953,-189.91268223,0.000294,2]
[377345528,1754373032962,-160.0,0.00030212,2]
[377345530,1754373032971,-370.94965979,0.00030286,2]
[377345531,1754373032981,-275.508263,0.00030324,2]
[377345533,1754373032990,-300.066924,0.00030325,2]
[377345535,1754373033000,-57189.97943879,0.00030325,2]
[377345581,1754373038799,-2840.16797446,0.00030325,2]
[377345582,1754373038809,-160.0,0.00030386,2]
[377345583,1754373038820,-160.0,0.00030386,2]
[377345584,1754373038829,-12655.02535889,0.00030386,2]
[377345585,1754373038838,-842.25606042,0.00030386,2]
[377345586,1754373038848,-460.0,0.00030395,2]
[377345587,1754373038857,-200.4,0.00030841,15]
[377345588,1754373038866,-17052.23274781,0.000309,15]
[377345589,1754373038875,-420.0,0.00031481,2]
[377345590,1754373038884,-296.1,0.00031552,2]
[377345591,1754373038893,-200.4,0.00031673,15]
[377345592,1754373038902,-805.5765991,0.00031738,120]
[377345593,1754373038911,-200.0,0.00032103,15]
[377345594,1754373038920,-200.0,0.00032103,15]
[377345595,1754373038929,-200.0,0.00032103,15]
[377345596,1754373038938,-200.4,0.00032506,15]
[377345597,1754373038948,-160.0,0.0003255,2]
[377345598,1754373038957,-163.034031,0.00032666,2]
[377345599,1754373038966,-3887.92,0.00032876,120]
[377345600,1754373038975,-166.0,0.00033,14]
[377345601,1754373038985,-680.32767496,0.00033061,2]
[377345602,1754373038995,-260.0,0.00033098,2]
[377345603,1754373039005,-539.1,0.000331,2]
[377345604,1754373039014,-200.4,0.00033338,15]
[377345606,1754373039023,-491.42,0.000335,7]
[377345607,1754373039033,-370.94965975,0.00033565,2]
[377345608,1754373039044,-360.0,0.00033646,2]
[377345609,1754373039054,-312.16666667,0.00033698,120]
[377345610,1754373039064,-527.3554621,0.00033698,120]
[377345611,1754373039074,-3887.92,0.00033698,120]
[377345612,1754373039083,-216.4206905,0.00033698,120]
[377345613,1754373039092,-37186.702325,0.00034,120]
[377345614,1754373039101,-200.4,0.00034171,15]
[377345615,1754373039111,-189.91268223,0.000344,2]
[377345616,1754373039120,-3887.92,0.0003452,120]
[377345617,1754373039129,-166.0,0.00034521,30]
[377345618,1754373039139,-200.4,0.00035004,15]
[377345619,1754373039148,-200.0,0.00035168,15]
[377345620,1754373039161,-200.0,0.00035168,15]
[377345621,1754373039170,-200.0,0.00035168,15]
[377345622,1754373039179,-240.0,0.00035168,15]
[377345623,1754373039189,-3887.92,0.00035342,120]
[377345624,1754373039199,-200.4,0.00035836,15]
[377345625,1754373039209,-151.0,0.00036065,2]
[377345626,1754373039218,-151.0,0.00036065,2]
[377345627,1754373039227,-151.0,0.00036065,2]
[377345628,1754373039238,-151.0,0.00036065,2]
[377345629,1754373039247,-151.0,0.00036065,2]
[377345630,1754373039256,-151.0,0.00036065,2]
[377345631,1754373039266,-151.0,0.00036065,2]
[377345632,1754373039275,-151.0,0.00036065,2]
[377345633,1754373039285,-151.0,0.00036065,2]
[377345634,1754373039294,-151.0,0.00036065,2]
[377345635,1754373039303,-151.0,0.00036065,2]
[377345636,1754373039313,-151.0,0.00036065,2]
[377345637,1754373039322,-151.0,0.00036065,2]
[377345638,1754373039332,-151.0,0.00036065,2]
[377345639,1754373039341,-151.0,0.00036065,2]
[377345640,1754373039353,-151.0,0.00036065,2]
[377345641,1754373039363,-151.0,0.00036065,2]
[377345642,1754373039372,-151.0,0.00036065,2]
[377345643,1754373039382,-151.0,0.00036065,2]
[377345644,1754373039391,-151.0,0.00036065,2]
[377345645,1754373039400,-151.0,0.00036065,2]
[377345646,1754373039409,-151.0,0.00036065,2]
[377345647,1754373039420,-151.0,0.00036065,2]
[377345648,1754373039431,-151.0,0.00036065,2]
[377345649,1754373039441,-151.0,0.00036065,2]
[377345650,1754373039451,-151.0,0.00036065,2]
[377345651,1754373039461,-151.0,0.00036065,2]
[377345652,1754373039470,-151.0,0.00036065,2]
[377345653,1754373039480,-151.0,0.00036065,2]
[377345654,1754373039490,-151.0,0.00036065,2]
[377345655,1754373039499,-151.0,0.00036065,2]
[377345656,1754373039508,-151.0,0.00036065,2]
[377345657,1754373039517,-151.0,0.00036065,2]
[377345658,1754373039527,-151.0,0.00036065,2]
[377345659,1754373039536,-151.0,0.00036065,2]
[377345660,1754373039545,-151.0,0.00036065,2]
[377345661,1754373039554,-151.0,0.00036065,2]
[377345662,1754373039563,-151.0,0.00036065,2]
[377345663,1754373039572,-151.0,0.00036065,2]
[377345664,1754373039582,-151.0,0.00036065,2]
[377345665,1754373039591,-154.09101441,0.00036065,2]
[377345666,1754373039601,-151.0,0.00036065,2]
[377345667,1754373039611,-151.0,0.00036065,2]
[377345668,1754373039620,-151.0,0.00036065,2]
[377345669,1754373039630,-151.0,0.00036065,2]
[377345670,1754373039639,-151.0,0.00036065,2]
[377345671,1754373039649,-151.0,0.00036065,2]
[377345672,1754373039658,-500.0,0.00036122,5]
[377345673,1754373039667,-150.0,0.00036122,5]
[377345674,1754373039677,-500.0,0.00036157,2]
[377345675,1754373039686,-500.0,0.00036157,5]
[377345676,1754373039696,-3887.92,0.00036164,120]
[377345677,1754373039707,-500.0,0.00036225,5]
[377345678,1754373039716,-203.09374552,0.00036347,2]
[377345679,1754373039726,-153.0,0.00036401,30]
[377345680,1754373039736,-160.3162146,0.00036401,30]
[377345681,1754373039746,-153.0,0.00036401,30]
[377345682,1754373039755,-160.3162146,0.00036401,30]
[377345683,1754373039765,-160.3162146,0.00036401,30]
[377345684,1754373039774,-153.0,0.00036401,30]
[377345685,1754373039784,-160.3162146,0.00036401,30]
[377345686,1754373039793,-153.0,0.00036401,30]
[377345687,1754373039803,-159.5229226,0.00036401,30]
[377345688,1754373039812,-161.6539585,0.00036401,30]
[377345689,1754373039821,-181.19685221,0.00036658,30]
[377345690,1754373039831,-200.4,0.00036669,15]
[377345691,1754373039841,-669.54080005,0.0003667,5]
[377345692,1754373039850,-250.0,0.0003667,5]
[377345693,1754373039859,-16185.9619835,0.00036702,3]
[377345694,1754373039869,-1000.0,0.00036705,2]
[377345695,1754373039879,-1600.0,0.00036712,7]
[377345696,1754373039888,-1000.0,0.00036773,5]
[377345697,1754373039897,-370.94965975,0.00036845,2]
[377345698,1754373039908,-181.19685221,0.00036849,30]
[377345699,1754373039918,-506.13681389,0.00036867,5]
[377345700,1754373039928,-3887.92,0.00036986,120]
[377345701,1754373039938,-181.19685221,0.00037014,30]
[377345702,1754373039948,-181.19685221,0.00037205,30]
[377345703,1754373039958,-300.73104502,0.00037218,5]
[377345704,1754373039968,-1500.0,0.00037253,2]
[377345705,1754373039978,-408.0,0.00037277,2]
[377345706,1754373039987,-410.804,0.00037277,2]
[377345707,1754373039996,-987.315,0.00037277,2]
[377345708,1754373040006,-2148.0,0.00037277,2]
[377345709,1754373040016,-636.0,0.00037277,2]
[377345710,1754373040026,-1000.0,0.00037321,5]
[377345711,1754373040037,-181.19685221,0.0003737,30]
[377345712,1754373040047,-491.42,0.000374,7]
[377345713,1754373040057,-200.4,0.00037501,15]
[377345714,1754373040067,-1600.0,0.00037534,7]
[377345715,1754373040077,-181.19685221,0.00037534,30]
[377345716,1754373040087,-400.38680987,0.000376,120]
[377345717,1754373040097,-181.19685221,0.00037726,30]
[377345718,1754373040108,-8845.67814379,0.0003779,2]
[377345719,1754373040120,-1775.18146634,0.000378,2]
[377345720,1754373040131,-1179.2612848,0.00037801,2]
[377345721,1754373040142,-3887.92,0.00037808,120]
[377345722,1754373040153,-216.4206905,0.00037808,120]
[377345723,1754373040173,-772.4802425,0.00037816,7]
[377345724,1754373040192,-80929.8099174,0.0003789,3]
[377345725,1754373040212,-181.19685221,0.0003789,30]
[377345726,1754373040232,-366085.35149855,0.000379,14]
[377345728,1754373040303,-295741.35158807,0.000379,14]
[377345760,1754373043109,-0.01564452,0.00030385,2]
[377345761,1754373043122,-159.98435548,0.00030385,2]
[377345762,1754373043133,-37237.36932556,0.000379,14]
[377345783,1754373043712,-1610.36689294,0.000379,14]
[377345803,1754373046871,-21175.25755471,0.000379,14]
[377345804,1754373046883,-20438.71,0.000379,14]
[377345805,1754373046894,-6764.81556621,0.000379,14]
[377345806,1754373046906,-1357.49138262,0.000379,14]
[377345807,1754373046919,-9404.58195433,0.000379,14]
[377345847,1754373425873,163.034031,0.00013699,2]
[377345848,1754373425931,163.034031,0.00026027,2]
[377345851,1754373968444,1563.14,0.0003,120]
[377345867,1754374232175,-150.0,0.000279,2]
[377345868,1754374232184,-154.994934,0.00028567,20]
[377345869,1754374232194,-59.39816449,0.00028703,2]
[377345870,1754374232206,-145.64770301,0.00028703,2]
[377345872,1754374232215,-2840.16797446,0.00030327,2]
[377345874,1754374232225,-150.0,0.00030341,30]
[377345876,1754374232234,-152.0,0.00030899,2]
[377345878,1754374232243,-400.0,0.00030899,2]
[377345880,1754374232252,-6776.81807838,0.000309,15]
[377345882,1754374232264,-1156.84589041,0.000309,15]
[377345931,1754374237973,-636.06935741,0.00030882,2]
[377345932,1754374237985,-3170.10461849,0.00030882,2]
[377345933,1754374237995,-325.52689344,0.000309,15]
[377345934,1754374238006,-2490.09604591,0.000309,15]
[377345935,1754374238019,-812.33175654,0.000309,15]
[377345936,1754374238030,-1163.95626942,0.000309,15]
[377345937,1754374238223,-3811.96664077,0.000309,15]
[377345938,1754374238233,-281.67,0.00031602,2]
[377345939,1754374238243,-150.0,0.000329,2]
[377345940,1754374238252,-560.0,0.00033271,2]
[377345941,1754374238261,-524.98,0.000336,2]
[377345942,1754374238270,-200.0,0.00033989,15]
[377345943,1754374238280,-200.0,0.00033989,15]
[377345944,1754374238290,-200.0,0.00033989,15]
[377345945,1754374238299,-251.50788088,0.00034881,2]
[377345946,1754374238308,-151.0,0.00035021,15]
[377345947,1754374238317,-14348.920701,0.000351,120]
[377345948,1754374238327,-216.4206905,0.000351,120]
[377345949,1754374238337,-24900.0,0.00035326,2]
[377345950,1754374238346,-1000.0,0.00035326,30]
[377345951,1754374238355,-324.58095229,0.00035344,2]
[377345952,1754374238364,-151.0,0.00035851,15]
[377345953,1754374238374,-166.0,0.00036,30]
[377345954,1754374238383,-704.77854159,0.00036288,120]
[377345955,1754374238392,-160.3162146,0.00036396,30]
[377345956,1754374238401,-153.0,0.00036396,30]
[377345957,1754374238410,-160.3162146,0.00036396,30]
[377345958,1754374238419,-153.0,0.00036396,30]
[377345959,1754374238428,-160.3162146,0.00036396,30]
[377345960,1754374238438,-153.0,0.00036396,30]
[377345961,1754374238447,-160.3162146,0.00036396,30]
[377345962,1754374238457,-153.0,0.00036396,30]
[377345963,1754374238466,-153.0,0.00036396,30]
[377345964,1754374238475,-159.5229226,0.00036396,30]
[377345965,1754374238485,-160.0,0.00036433,2]
[377345966,1754374238494,-8464.37697,0.000365,120]
[377345967,1754374238503,-181.19685221,0.00036658,30]
[377345968,1754374238513,-151.0,0.0003668,15]
[377345969,1754374238533,-192.8557841,0.00036711,15]
[377345970,1754374238544,-1600.0,0.00036712,7]
[377345971,1754374238554,-200.0,0.00036981,2]
[377345972,1754374238564,-181.19685218,0.00037151,30]
[377345973,1754374238574,-181.19685221,0.00037151,30]
[377345974,1754374238585,-181.19685221,0.00037151,30]
[377345975,1754374238595,-200.0,0.00037221,15]
[377345976,1754374238604,-200.0,0.00037221,15]
[377345977,1754374238615,-200.0,0.00037221,15]
[377345978,1754374238625,-240.0,0.00037221,15]
[377345979,1754374238635,-166.0,0.00037397,30]
[377345980,1754374238645,-151.0,0.0003751,15]
[377345981,1754374238655,-1600.0,0.00037534,7]
[377345982,1754374238666,-181.19685218,0.00037644,30]
[377345983,1754374238676,-181.19685221,0.00037644,30]
[377345984,1754374238685,-181.19685221,0.00037644,30]
[377345986,1754374238695,-842.25606042,0.00037692,2]
[377345988,1754374238705,-160.0,0.00037692,2]
[377345989,1754374238715,-2089.73037067,0.000377,2]
[377345990,1754374238725,-8845.67814379,0.000377,2]
[377345991,1754374238735,-356.58355571,0.00037702,2]
[377345992,1754374238744,-772.4802425,0.00037749,7]
[377345993,1754374238754,-2148.0,0.00037751,2]
[377345994,1754374238764,-971.0,0.00037751,2]
[377345995,1754374238773,-636.0,0.00037751,2]
[377345997,1754374238783,-408.0,0.00037751,2]
[377345999,1754374238792,-410.804,0.00037751,2]
[377346001,1754374238802,-151.0,0.00037767,2]
[377346003,1754374238811,-151.0,0.00037767,2]
[377346005,1754374238820,-151.0,0.00037767,2]
[377346006,1754374238832,-151.0,0.00037767,2]
[377346007,1754374238842,-151.0,0.00037767,2]
[377346008,1754374238854,-151.0,0.00037767,2]
[377346009,1754374238863,-151.0,0.00037767,2]
[377346010,1754374238873,-151.0,0.00037767,2]
[377346011,1754374238883,-151.0,0.00037767,2]
[377346012,1754374238892,-151.0,0.00037767,2]
[377346013,1754374238901,-151.0,0.00037767,2]
[377346014,1754374238911,-151.0,0.00037767,2]
[377346015,1754374238921,-151.0,0.00037767,2]
[377346016,1754374238930,-151.0,0.00037767,2]
[377346017,1754374238940,-151.0,0.00037767,2]
[377346018,1754374238950,-151.0,0.00037767,2]
[377346019,1754374238959,-151.0,0.00037767,2]
[377346020,1754374238969,-151.0,0.00037767,2]
[377346021,1754374238979,-151.0,0.00037767,2]
[377346022,1754374238988,-151.0,0.00037767,2]
[377346023,1754374238999,-151.0,0.00037767,2]
[377346024,1754374239008,-151.0,0.00037767,2]
[377346025,1754374239018,-151.0,0.00037767,2]
[377346026,1754374239028,-151.0,0.00037767,2]
[377346027,1754374239038,-151.0,0.00037767,2]
[377346028,1754374239048,-151.0,0.00037767,2]
[377346029,1754374239058,-151.0,0.00037767,2]
[377346030,1754374239068,-151.0,0.00037767,2]
[377346031,1754374239078,-151.0,0.00037767,2]
[377346032,1754374239088,-151.0,0.00037767,2]
[377346033,1754374239097,-151.0,0.00037767,2]
[377346034,1754374239107,-151.0,0.00037767,2]
[377346035,1754374239117,-151.0,0.00037767,2]
[377346036,1754374239127,-151.0,0.00037767,2]
[377346037,1754374239140,-151.0,0.00037767,2]
[377346038,1754374239151,-151.0,0.00037767,2]
[377346039,1754374239161,-151.0,0.00037767,2]
[377346040,1754374239170,-151.0,0.00037767,2]
[377346041,1754374239181,-151.0,0.00037767,2]
[377346042,1754374239191,-151.0,0.00037767,2]
[377346043,1754374239200,-151.0,0.00037767,2]
[377346044,1754374239210,-151.0,0.00037767,2]
[377346045,1754374239220,-151.0,0.00037767,2]
[377346046,1754374239230,-151.0,0.00037767,2]
[377346047,1754374239240,-151.0,0.00037767,2]
[377346048,1754374239250,-151.0,0.00037767,2]
[377346049,1754374239261,-154.09101441,0.00037767,2]
[377346050,1754374239271,-1099.82395147,0.0003777,3]
[377346051,1754374239281,-1099.82395147,0.0003777,3]
[377346052,1754374239291,-553.88,0.0003778,3]
[377346053,1754374239301,-527.3554621,0.0003778,120]
[377346054,1754374239311,-7877.64,0.0003778,120]
[377346055,1754374239321,-5499.11975735,0.0003778,3]
[377346056,1754374239331,-1099.82395147,0.0003779,3]
[377346057,1754374239340,-188741.03721917,0.0003779,2]
[377346086,1754374402683,162.155443,0.00013699,2]
[377346087,1754374402874,162.155443,0.00026027,2]
[377346089,1754374433166,244.23,0.00028829,30]
[377346090,1754374505399,217.09,0.00028829,30]
[377346091,1754374505801,217.09,0.00029906,30]
[377346092,1754374574971,168.85,0.00029906,30]
[377346093,1754374644463,150.09,0.00029906,30]
[377346113,1754374784690,-154.994934,0.00028567,20]
[377346114,1754374784718,-153.653991,0.00028567,20]
[377346115,1754374784747,-151.0,0.00033437,15]
[377346116,1754374784775,-151.0,0.00034257,15]
[377346117,1754374784808,-16334.89254152,0.000349,23]
[377346118,1754374784837,-151.0,0.00035077,15]
[377346119,1754374784865,-151.0,0.00035897,15]
[377346120,1754374785017,-441.48790958,0.00036278,120]
[377346121,1754374785045,-151.0,0.00036718,15]
[377346122,1754374785071,-1000.0,0.000368,80]
[377346123,1754374785098,-151.0,0.00037538,15]
[377346124,1754374785126,-168.17756401,0.00037644,30]
[377346125,1754374785152,-207.05460167,0.00037779,15]
[377346126,1754374785179,-1000.0,0.00037789,120]
[377346127,1754374785206,-7578.19,0.00037799,120]
[377346128,1754374785234,-158.109155,0.0003789,14]
[377346129,1754374785260,-7184.70423701,0.000379,14]
[377346130,1754374785286,-150.0,0.000379,118]
[377346131,1754374785316,-151.0,0.000379,14]
[377346132,1754374785344,-2118.522515,0.000379,14]
[377346133,1754374785373,-2118.522515,0.000379,14]
[377346134,1754374785399,-151.0,0.000379,15]
[377346135,1754374785425,-151.0,0.000379,14]
[377346136,1754374785451,-151.0,0.000379,14]
[377346137,1754374785477,-151.0,0.000379,14]
[377346138,1754374785502,-151.0,0.000379,14]
[377346139,1754374785528,-153.214716,0.00037938,14]
[377346140,1754374785555,-151.0,0.00037938,14]
[377346141,1754374785581,-151.0,0.00037938,14]
[377346142,1754374785607,-151.0,0.00037938,14]
[377346143,1754374785633,-151.0,0.00037938,14]
[377346144,1754374785659,-151.0,0.00037938,14]
[377346145,1754374785685,-151.0,0.00037944,14]
[377346146,1754374785712,-2118.522515,0.00037944,14]
[377346147,1754374785740,-2118.522515,0.00037944,14]
[377346148,1754374785766,-554.0,0.0003796,120]
[377346149,1754374785799,-554.0,0.0003797,120]
[377346150,1754374785836,-312.16666667,0.0003797,120]
[377346151,1754374785862,-527.3554621,0.0003797,120]
[377346152,1754374785888,-554.0,0.0003798,120]
[377346153,1754374785915,-151.0,0.0003798,14]
[377346154,1754374785942,-151.0,0.0003799,14]
[377346155,1754374785972,-368.210422,0.0003799,14]
[377346156,1754374785999,-151.0,0.0003799,14]
[377346157,1754374786025,-152.597128,0.0003799,14]
[377346158,1754374786052,-151.0,0.0003799,14]
[377346159,1754374786077,-151.0,0.0003799,14]
[377346160,1754374786103,-152.03556,0.0003799,14]
[377346161,1754374786130,-151.0,0.0003799,14]
[377346162,1754374786156,-154.73278,0.0003799,14]
[377346163,1754374786192,-151.0,0.0003799,14]
[377346164,1754374786219,-2118.522515,0.0003799,14]
[377346165,1754374786246,-2118.522515,0.0003799,14]
[377346166,1754374786273,-151.0,0.0003799,14]
[377346167,1754374786299,-151.0,0.0003799,14]
[377346168,1754374786324,-158.388803,0.0003799,14]
[377346169,1754374786351,-151.0,0.0003799,14]
[377346170,1754374786376,-151.833141,0.0003799,14]
[377346171,1754374786403,-155.200538,0.0003799,14]
[377346172,1754374786429,-151.0,0.0003799,14]
[377346173,1754374786454,-151.0,0.0003799,14]
[377346174,1754374786484,-178.645881,0.0003799,14]
[377346175,1754374786511,-178.645881,0.0003799,14]
[377346176,1754374786536,-3057.8931863,0.00038,120]
[377346177,1754374786562,-200.0,0.00038,14]